fUSD/lending_fUSD_20260319
["ID","MTS","AMOUNT","RATE_DAILY","PERIOD"]
[408587272,1773905437448,-239.13327104,0.00013698,2]
[408587273,1773905437458,-502.25802532,0.00013698,2]
[408587274,1773905437467,-500.0,0.00013698,2]
[408587275,1773905437476,-500.0,0.00013698,2]
[408587276,1773905437485,-500.0,0.00013698,2]
[408587277,1773905437495,-497.57987952,0.00013698,2]
[408587278,1773905437504,-500.0,0.00013698,2]
[408587279,1773905437513,-500.0,0.00013698,2]
[408587280,1773905437522,-500.0,0.00013698,2]
[408587281,1773905437533,-500.0,0.00013698,2]
[408587282,1773905437544,-500.0,0.00013698,2]
[408587283,1773905437553,-500.0,0.00013698,2]
[408587284,1773905437563,-500.0,0.00013698,2]
[408587286,1773905437574,-500.0,0.00013698,2]
[408587288,1773905437584,-500.0,0.00013698,2]
[408587290,1773905437594,-372.32743574,0.00013698,2]
[408587292,1773905437604,-500.0,0.00013698,2]
[408587293,1773905437617,-500.0,0.00013698,2]
[408587294,1773905437626,-500.0,0.00013698,2]
[408587295,1773905437635,-500.0,0.00013698,2]
[408587296,1773905437644,-605.91414037,0.00013698,2]
[408587297,1773905437654,-2344.35,0.00013698,2]
[408587298,1773905437664,-2344.35,0.00013698,2]
[408587299,1773905437673,-2344.35,0.00013698,2]
[408587300,1773905437683,-2344.35,0.00013698,2]
[408587301,1773905437692,-2344.35,0.00013698,2]
[408587302,1773905437702,-2344.35,0.00013698,2]
[408587303,1773905437712,-2344.35,0.00013698,2]
[408587304,1773905437721,-2344.35,0.00013698,2]
[408587305,1773905437731,-2344.35,0.00013698,2]
[408587306,1773905437741,-2344.35,0.00013698,2]
[408587307,1773905437750,-2344.35,0.00013698,2]
[408587308,1773905437760,-2344.35,0.00013698,2]
[408587309,1773905437769,-2344.35,0.00013698,2]
[408587310,1773905437779,-2344.35,0.00013698,2]
[408587311,1773905437788,-2344.35,0.00013698,2]
[408587312,1773905437798,-2344.35,0.00013698,2]
[408587313,1773905437807,-2344.35,0.00013698,2]
[408587314,1773905437816,-2344.35,0.00013698,2]
[408587315,1773905437825,-2344.35,0.00013698,2]
[408587316,1773905437835,-500.0,0.00013698,2]
[408587317,1773905437844,-500.0,0.00013698,2]
[408587318,1773905437853,-500.0,0.00013698,2]
[408587319,1773905437863,-500.0,0.00013698,2]
[408587320,1773905437872,-500.0,0.00013698,2]
[408587321,1773905437881,-500.0,0.00013698,2]
[408587322,1773905437890,-510.13276666,0.00013698,2]
[408587323,1773905437899,-500.0,0.00013698,2]
[408587324,1773905437909,-500.0,0.00013698,2]
[408587325,1773905437918,-500.0,0.00013698,2]
[408587326,1773905437927,-500.0,0.00013698,2]
[408587327,1773905437936,-500.0,0.00013698,2]
[408587328,1773905437945,-500.0,0.00013698,2]
[408587329,1773905437954,-500.0,0.00013698,2]
[408587330,1773905437963,-500.0,0.00013698,2]
[408587331,1773905437972,-500.0,0.00013698,2]
[408587332,1773905437982,-500.0,0.00013698,2]
[408587333,1773905437991,-500.0,0.00013698,2]
[408587334,1773905438000,-500.0,0.00013698,2]
[408587335,1773905438009,-500.0,0.00013698,2]
[408587336,1773905438018,-500.0,0.00013698,2]
[408587337,1773905438027,-500.0,0.00013698,2]
[408587338,1773905438036,-500.0,0.00013698,2]
[408587339,1773905438045,-364.86478079,0.00013698,2]
[408587340,1773905438054,-500.0,0.00013698,2]
[408587341,1773905438063,-500.0,0.00013698,2]
[408587342,1773905438073,-500.0,0.00013698,2]
[408587343,1773905438082,-500.0,0.00013698,2]
[408587344,1773905438091,-500.0,0.00013698,2]
[408587345,1773905438100,-500.0,0.00013698,2]
[408587346,1773905438109,-500.0,0.00013698,2]
[408587347,1773905438119,-500.0,0.00013698,2]
[408587348,1773905438128,-500.0,0.00013698,2]
[408587349,1773905438137,-500.0,0.00013698,2]
[408587350,1773905438146,-500.0,0.00013698,2]
[408587351,1773905438156,-500.0,0.00013698,2]
[408587352,1773905438165,-500.0,0.00013698,2]
[408587353,1773905438174,-500.0,0.00013698,2]
[408587354,1773905438183,-500.0,0.00013698,2]
[408587355,1773905438192,-500.0,0.00013698,2]
[408587356,1773905438201,-500.0,0.00013698,2]
[408587357,1773905438210,-500.0,0.00013698,2]
[408587358,1773905438219,-500.0,0.00013698,2]
[408587359,1773905438228,-500.0,0.00013698,2]
[408587360,1773905438237,-500.0,0.00013698,2]
[408587361,1773905438247,-549.26309957,0.00013698,2]
[408587362,1773905438256,-150.0,0.00013699,2]
[408587363,1773905438265,-200.0,0.00013699,2]
[408587364,1773905438274,-157.48,0.00013699,2]
[408587365,1773905438283,-787.43,0.00013699,2]
[408587366,1773905438292,-500.0,0.00013699,2]
[408587367,1773905438300,-500.0,0.00013699,2]
[408587368,1773905438309,-500.0,0.00013699,2]
[408587369,1773905438318,-500.0,0.00013699,2]
[408587370,1773905438327,-500.602946,0.00013699,2]
[408587371,1773905438337,-500.0,0.00013699,2]
[408587372,1773905438346,-500.0,0.00013699,2]
[408587373,1773905438356,-500.0,0.00013699,2]
[408587374,1773905438364,-500.0,0.00013699,2]
[408587375,1773905438373,-500.0,0.00013699,2]
[408587376,1773905438382,-500.0,0.00013699,2]
[408587377,1773905438391,-339.06605453,0.00013699,2]
[408587378,1773905438400,-500.0,0.00013699,2]
[408587379,1773905438409,-500.0,0.00013699,2]
[408587380,1773905438418,-500.0,0.00013699,2]
[408587381,1773905438428,-500.0,0.00013699,2]
[408587382,1773905438438,-534.74942623,0.00013699,2]
[408587383,1773905438446,-500.0,0.00013699,2]
[408587384,1773905438456,-500.0,0.00013699,2]
[408587385,1773905438465,-500.0,0.00013699,2]
[408587386,1773905438475,-500.0,0.00013699,2]
[408587387,1773905438484,-500.0,0.00013699,2]
[408587388,1773905438494,-500.0,0.00013699,2]
[408587389,1773905438503,-500.0,0.00013699,2]
[408587390,1773905438513,-500.0,0.00013699,2]
[408587391,1773905438523,-500.0,0.00013699,2]
[408587392,1773905438540,-598.32353377,0.00013699,2]
[408587393,1773905438549,-500.0,0.00013699,2]
[408587394,1773905438558,-275.62181571,0.00013699,2]
[408587395,1773905438567,-2344.35,0.00013699,2]
[408587396,1773905438579,-2344.35,0.00013699,2]
[408587397,1773905438588,-2344.35,0.00013699,2]
[408587398,1773905438598,-2344.35,0.00013699,2]
[408587400,1773905438608,-2344.37337267,0.00013699,2]
[408587401,1773905438618,-161.11,0.00013699,2]
[408587402,1773905438627,-216.80521591,0.000137,2]
[408587404,1773905438636,-1007.95,0.000137,2]
[408587405,1773905438646,-3299.09,0.000137,2]
[408587407,1773905438656,-4095.59,0.000137,2]
[408587409,1773905438666,-8581.87,0.000137,2]
[408587411,1773905438675,-5072.64,0.000137,2]
[408587413,1773905438685,-7697.38,0.000137,2]
[408587414,1773905438694,-18650.19128444,0.000137,2]
[408587415,1773905439107,-105665.52089774,0.000137,2]
[408587416,1773905439119,-137795.34821969,0.000137,2]
[408587417,1773905439131,-235075.49501678,0.000137,2]
[408587418,1773905439143,-1254.41808677,0.000137,2]
[408587419,1773905439160,-438.09910747,0.000137,2]
[408587422,1773905440192,-917.57783845,0.00012723,2]
[408587423,1773905440203,-860.85068214,0.00012723,2]
[408587424,1773905440281,-1443.07447863,0.00012723,2]
[408587425,1773905440291,-391.19164398,0.00012829,2]
[408587426,1773905440301,-536.91716654,0.00012837,2]
[408587427,1773905440311,-500.0,0.00012884,2]
[408587428,1773905440321,-500.0,0.00012939,2]
[408587429,1773905440330,-536.91716654,0.00012964,2]
[408587430,1773905440339,-500.0,0.00012994,2]
[408587432,1773905440349,-500.0,0.00013049,2]
[408587434,1773905440358,-536.91716654,0.00013092,2]
[408587436,1773905440367,-500.0,0.00013104,2]
[408587437,1773905440376,-500.0,0.00013159,2]
[408587438,1773905440385,-500.0,0.00013214,2]
[408587439,1773905440394,-500.0,0.00013269,2]
[408587440,1773905440404,-500.0,0.00013324,2]
[408587441,1773905440413,-500.0,0.00013379,2]
[408587442,1773905440423,-31244.63738711,0.000137,2]
[408587444,1773905440432,-500.0,0.00013753,2]
[408587446,1773905440441,-23733.04613424,0.00013754,2]
[408587447,1773905440450,-333.0,0.00013888,2]
[408587448,1773905440459,-154.42032794,0.00013893,2]
[408587449,1773905440468,-3100.0,0.000139,5]
[408587450,1773905440476,-1152.0,0.00013907,2]
[408587451,1773905440485,-4609.0,0.00013907,2]
[408587452,1773905440495,-1152.0,0.00013907,2]
[408587453,1773905440504,-1252.0,0.00013967,2]
[408587454,1773905440513,-150.0,0.00013973,2]
[408587455,1773905440522,-15953.48885377,0.0001399,2]
[408587456,1773905440534,-600.0,0.00013994,2]
[408587457,1773905440543,-342.78,0.00013994,2]
[408587458,1773905440553,-824.42530788,0.00014,2]
[408587459,1773905440562,-7361.80400992,0.00014062,2]
[408587460,1773905440571,-501.0,0.00014146,2]
[408587461,1773905440579,-1000.0,0.00014221,2]
[408587462,1773905440588,-500.0,0.00014221,2]
[408587463,1773905440597,-1000.0,0.00014221,2]
[408587464,1773905440606,-1000.0,0.00014221,2]
[408587465,1773905440615,-500.0,0.00014221,2]
[408587466,1773905440624,-1000.0,0.00014221,2]
[408587467,1773905440633,-1000.0,0.00014247,2]
[408587468,1773905440642,-1000.0,0.00014247,2]
[408587469,1773905440651,-1000.0,0.00014247,2]
[408587470,1773905440660,-226.28741406,0.00014247,2]
[408587471,1773905440670,-1000.0,0.00014247,2]
[408587472,1773905440679,-1000.0,0.00014247,2]
[408587473,1773905440687,-1000.0,0.00014247,2]
[408587474,1773905440696,-1000.0,0.00014247,2]
[408587475,1773905440707,-1000.0,0.00014247,2]
[408587476,1773905440717,-1000.0,0.00014247,2]
[408587477,1773905440727,-1000.0,0.00014247,2]
[408587478,1773905440736,-914.97243229,0.00014247,2]
[408587479,1773905440746,-1000.0,0.00014247,2]
[408587480,1773905440755,-1000.0,0.00014247,2]
[408587481,1773905440764,-1000.0,0.00014247,2]
[408587482,1773905440773,-1000.0,0.00014247,2]
[408587483,1773905440783,-1000.0,0.00014247,2]
[408587484,1773905440792,-1000.0,0.00014247,2]
[408587485,1773905440801,-1000.0,0.00014247,2]
[408587486,1773905440810,-1000.0,0.00014247,2]
[408587487,1773905440819,-1000.0,0.00014247,2]
[408587488,1773905440828,-1000.0,0.00014247,2]
[408587489,1773905440837,-1000.0,0.00014247,2]
[408587490,1773905440847,-1000.0,0.00014247,2]
[408587491,1773905440855,-220.5600378,0.0001433,2]
[408587492,1773905440864,-10385.50220008,0.0001439,2]
[408587493,1773905440873,-2402.0,0.000144,2]
[408587494,1773905440882,-2402.0,0.000144,2]
[408587495,1773905440891,-2402.0,0.000144,2]
[408587496,1773905440900,-891.02280977,0.00014433,2]
[408587497,1773905440909,-1567.0,0.00014465,2]
[408587498,1773905440918,-23733.04613424,0.00014473,2]
[408587499,1773905440927,-2000.0,0.00014533,2]
[408587500,1773905440936,-395.86,0.00014546,2]
[408587501,1773905440945,-220.5600378,0.00014549,2]
[408587502,1773905440954,-2000.0,0.00014633,2]
[408587503,1773905440963,-500.0,0.00014658,2]
[408587504,1773905440972,-160.0,0.00014698,2]
[408587505,1773905440981,-979.16666667,0.00014698,2]
[408587506,1773905440990,-160.0,0.00014698,2]
[408587507,1773905440999,-1567.0,0.0001472,2]
[408587508,1773905441008,-1567.0,0.0001472,2]
[408587509,1773905441017,-2402.0,0.0001472,2]
[408587510,1773905441026,-2000.0,0.00014733,2]
[408587511,1773905441035,-220.5600378,0.00014768,2]
[408587512,1773905441045,-1512.51857515,0.00014768,2]
[408587513,1773905441054,-1500.0,0.00014768,2]
[408587514,1773905441065,-1500.0,0.00014768,2]
[408587515,1773905441075,-1500.0,0.00014768,2]
[408587516,1773905441084,-1500.0,0.00014795,2]
[408587517,1773905441093,-1500.0,0.00014795,2]
[408587518,1773905441102,-1500.0,0.00014795,2]
[408587519,1773905441111,-1005.49650087,0.00014795,2]
[408587520,1773905441120,-1500.0,0.00014795,2]
[408587521,1773905441129,-1500.0,0.00014795,2]
[408587522,1773905441138,-1500.0,0.00014795,2]
[408587523,1773905441147,-301.7381184,0.00014795,2]
[408587524,1773905441157,-1500.0,0.00014795,2]
[408587525,1773905441166,-1500.0,0.00014795,2]
[408587526,1773905441175,-1500.0,0.00014795,2]
[408587527,1773905441184,-1500.0,0.00014795,2]
[408587528,1773905441193,-1500.0,0.00014795,2]
[408587529,1773905441202,-1047.2319377,0.00014795,2]
[408587530,1773905441212,-1500.0,0.00014795,2]
[408587531,1773905441221,-1500.0,0.00014795,2]
[408587532,1773905441230,-1500.0,0.00014795,2]
[408587533,1773905441240,-1500.0,0.00014795,2]
[408587534,1773905441249,-1220.11454399,0.00014795,2]
[408587535,1773905441258,-1500.0,0.00014795,2]
[408587536,1773905441267,-1500.0,0.00014795,2]
[408587537,1773905441276,-1500.0,0.00014795,2]
[408587538,1773905441285,-338.31056644,0.00014831,2]
[408587539,1773905441294,-2000.0,0.00014833,2]
[408587540,1773905441303,-333.0,0.00014888,2]
[408587541,1773905441313,-171.27893897,0.000149,2]
[408587542,1773905441323,-171.27893897,0.000149,2]
[408587543,1773905441332,-73956.70218337,0.000149,2]
[408587544,1773905441341,-3900.0,0.000149,5]
[408587545,1773905441351,-229.65601078,0.00014928,2]
[408587546,1773905441360,-2000.0,0.00014933,2]
[408587547,1773905441369,-501.0,0.00014959,3]
[408587548,1773905441379,-500.0,0.00014973,2]
[408587549,1773905441388,-500.0,0.00014973,2]
[408587550,1773905441397,-500.0,0.00014973,2]
[408587551,1773905441408,-500.0,0.00014973,2]
[408587552,1773905441416,-162.36552885,0.00014973,2]
[408587553,1773905441426,-7361.80400992,0.00014986,2]
[408587554,1773905441435,-220.56003779,0.00014988,2]
[408587555,1773905441444,-250.0,0.00015,2]
[408587556,1773905441453,-8581.87,0.00015,2]
[408587557,1773905441462,-4095.59,0.00015,2]
[408587558,1773905441471,-30236.30166726,0.00015,7]
[408587559,1773905441481,-2063.07913842,0.00015,2]
[408587560,1773905441491,-3182.24180802,0.00015,14]
[408587561,1773905441504,-8031.63478619,0.00015,2]
[408587562,1773905441513,-477601.72774685,0.00015,3]
[408587563,1773905441523,-250.07406013,0.00015,5]
[408587564,1773905441537,-6137.31537886,0.00015028,3]
[408587565,1773905441547,-2000.0,0.00015033,2]
[408587566,1773905441556,-161.0,0.0001504,2]
[408587567,1773905441567,-1567.0,0.0001504,2]
[408587568,1773905441576,-2402.0,0.0001504,2]
[408587569,1773905441585,-338.31056644,0.0001505,2]
[408587570,1773905441595,-900.0,0.00015068,2]
[408587571,1773905441606,-500.0,0.00015073,2]
[408587572,1773905441615,-500.0,0.00015073,2]
[408587573,1773905441623,-500.0,0.00015073,2]
[408587574,1773905441635,-500.64450222,0.00015073,2]
[408587575,1773905441645,-500.0,0.00015073,2]
[408587576,1773905441654,-500.0,0.00015073,2]
[408587577,1773905441664,-500.0,0.00015073,2]
[408587578,1773905441673,-500.0,0.00015073,2]
[408587579,1773905441682,-500.0,0.00015073,2]
[408587580,1773905441691,-500.0,0.00015073,2]
[408587581,1773905441700,-500.0,0.00015073,2]
[408587582,1773905441709,-500.0,0.00015073,2]
[408587583,1773905441719,-606.98804759,0.00015073,2]
[408587584,1773905441729,-517.58879621,0.00015073,2]
[408587585,1773905441737,-500.0,0.00015073,2]
[408587586,1773905441746,-500.0,0.00015073,2]
[408587587,1773905441755,-166.1762201,0.00015073,2]
[408587588,1773905441765,-5072.64,0.000151,2]
[408587589,1773905441774,-7697.38,0.000151,2]
[408587590,1773905441784,-530123.71,0.000151,2]
[408587591,1773905441793,-179.0,0.00015105,2]
[408587592,1773905441804,-879.01,0.00015115,2]
[408587593,1773905441814,-2000.0,0.00015133,2]
[408587594,1773905441823,-282.6050871,0.0001516,2]
[408587595,1773905441833,-2402.0,0.0001519,2]
[408587596,1773905441843,-23733.04613424,0.00015191,2]
[408587597,1773905441852,-3299.09,0.000152,2]
[408587598,1773905441861,-1007.95,0.000152,2]
[408587599,1773905441870,-1051.0,0.000152,2]
[408587600,1773905441879,-165.25,0.000152,2]
[408587601,1773905441888,-1044.0,0.0001522,2]
[408587602,1773905441897,-3512.0,0.0001522,2]
[408587603,1773905441906,-2000.0,0.00015233,2]
[408587604,1773905441915,-338.31056644,0.0001527,2]
[408587605,1773905441924,-600.0,0.00015271,2]
[408587606,1773905441933,-342.78,0.00015271,2]
[408587607,1773905441942,-1613.0,0.00015298,2]
[408587608,1773905441951,-6453.0,0.00015298,2]
[408587609,1773905441960,-737.0,0.00015298,2]
[408587610,1773905441970,-1517.64,0.000153,2]
[408587611,1773905441979,-2000.0,0.00015316,2]
[408587612,1773905441987,-2000.0,0.00015316,2]
[408587613,1773905441996,-2000.0,0.00015316,2]
[408587614,1773905442005,-2502.689533,0.0001533,7]
[408587615,1773905442015,-2000.0,0.00015333,2]
[408587616,1773905442024,-578.73590627,0.00015342,2]
[408587617,1773905442033,-232.68961964,0.00015342,2]
[408587618,1773905442042,-2000.0,0.00015342,2]
[408587619,1773905442052,-2000.0,0.00015342,2]
[408587620,1773905442061,-1499.94158246,0.00015342,2]
[408587621,1773905442070,-2000.0,0.00015342,2]
[408587622,1773905442080,-2000.0,0.00015342,2]
[408587623,1773905442090,-931.42701484,0.00015342,2]
[408587624,1773905442099,-2000.0,0.00015342,2]
[408587625,1773905442108,-2000.0,0.00015342,2]
[408587626,1773905442117,-1676.1614452,0.00015342,2]
[408587627,1773905442126,-2000.0,0.00015342,2]
[408587628,1773905442138,-455.72571989,0.00015342,2]
[408587629,1773905442147,-2000.0,0.00015342,2]
[408587630,1773905442157,-2000.0,0.00015342,2]
[408587631,1773905442166,-2000.0,0.00015342,2]
[408587632,1773905442176,-161.0,0.0001536,2]
[408587633,1773905442185,-1567.0,0.0001536,2]
[408587634,1773905442195,-2402.0,0.0001536,2]
[408587635,1773905442204,-2129.0,0.00015369,2]
[408587636,1773905442213,-879.01,0.00015389,2]
[408587637,1773905442342,-511.52743554,0.000154,2]
[408587638,1773905442356,-229.65601077,0.00015419,2]
[408587639,1773905442368,-2000.0,0.00015433,2]
[408587640,1773905442378,-757.0,0.00015464,2]
[408587641,1773905442387,-757.0,0.0001548,2]
[408587642,1773905442397,-338.31056644,0.00015489,2]
[408587643,1773905442408,-395.86,0.00015492,2]
[408587645,1773905442417,-1567.0,0.000155,2]
[408587647,1773905442427,-164.0,0.000155,2]
[408587650,1773905442436,-1228.88155727,0.000155,2]
[408587653,1773905442445,-459.789018,0.00015506,7]
[408587654,1773905442455,-849.491983,0.00015506,7]
[408587655,1773905442465,-3851.12,0.00015507,2]
[408587656,1773905442474,-168.0,0.00015512,2]
[408587657,1773905442484,-412.99392051,0.00015521,2]
[408587658,1773905442493,-1000.0,0.00015521,2]
[408587659,1773905442503,-1000.0,0.00015521,2]
[408587660,1773905442512,-1000.0,0.00015521,2]
[408587661,1773905442521,-2000.0,0.00015533,2]
[408587662,1773905442531,-168.0,0.00015566,2]
[408587663,1773905442543,-757.0,0.00015568,2]
[408587664,1773905442552,-2464.99910315,0.00015571,2]
[408587665,1773905442561,-400.0,0.00015616,2]
[408587666,1773905442571,-436.211883,0.00015616,2]
[408587667,1773905442580,-625.21955224,0.00015621,2]
[408587668,1773905442590,-1000.0,0.00015621,2]
[408587669,1773905442599,-1000.0,0.00015621,2]
[408587670,1773905442609,-1000.0,0.00015621,2]
[408587671,1773905442618,-1000.0,0.00015621,2]
[408587672,1773905442627,-1000.0,0.00015621,2]
[408587673,1773905442637,-1000.0,0.00015621,2]
[408587674,1773905442646,-1000.0,0.00015621,2]
[408587675,1773905442657,-857.17487336,0.00015621,2]
[408587676,1773905442666,-282.85176182,0.00015621,2]
[408587677,1773905442675,-1000.0,0.00015621,2]
[408587678,1773905442685,-1000.0,0.00015621,2]
[408587679,1773905442695,-1000.0,0.00015621,2]
[408587680,1773905442704,-2000.0,0.00015633,2]
[408587681,1773905442713,-757.0,0.0001564,2]
[408587682,1773905442722,-879.01,0.00015663,2]
[408587683,1773905442732,-757.0,0.00015674,2]
[408587684,1773905442742,-700.0,0.000157,5]
[408587685,1773905442751,-2000.0,0.00015733,2]
[408587686,1773905442761,-181.6,0.00015735,30]
[408587687,1773905442770,-181.6,0.00015735,30]
[408587688,1773905442780,-1567.0,0.00015745,2]
[408587689,1773905442789,-501.0,0.00015772,4]
[408587690,1773905442798,-1567.0,0.00015785,2]
[408587691,1773905442807,-161.0,0.00015785,2]
[408587692,1773905442817,-2464.99910315,0.0001579,2]
[408587693,1773905442826,-700.0,0.000158,5]
[408587694,1773905442836,-1261.0,0.00015804,2]
[408587695,1773905442845,-150.369,0.00015804,2]
[408587696,1773905442854,-1215.0,0.00015804,2]
[408587697,1773905442863,-924.0,0.00015804,2]
[408587698,1773905442872,-2254.45345603,0.00015807,2]
[408587699,1773905442882,-2000.0,0.00015833,2]
[408587700,1773905442891,-2049.71073345,0.00015864,2]
[408587701,1773905442900,-2500.0,0.00015864,2]
[408587702,1773905442910,-2500.0,0.00015864,2]
[408587703,1773905442919,-333.0,0.00015888,2]
[408587704,1773905442929,-2500.0,0.0001589,2]
[408587705,1773905442940,-2500.0,0.0001589,2]
[408587706,1773905442950,-2500.0,0.0001589,2]
[408587707,1773905442959,-1156.4847291,0.0001589,2]
[408587708,1773905442969,-2500.0,0.0001589,2]
[408587709,1773905442979,-461.15092032,0.0001589,2]
[408587710,1773905442989,-2500.0,0.0001589,2]
[408587711,1773905442999,-2601.20422733,0.0001589,2]
[408587712,1773905443008,-2500.0,0.0001589,2]
[408587713,1773905443018,-2500.0,0.0001589,2]
[408587714,1773905443027,-3851.12,0.00015895,2]
[408587715,1773905443038,-168.0,0.00015899,2]
[408587716,1773905443048,-879.11493942,0.000159,2]
[408587717,1773905443058,-150.0,0.000159,2]
[408587718,1773905443068,-700.0,0.000159,5]
[408587719,1773905443077,-467.41667295,0.000159,2]
[408587720,1773905443086,-467.41667283,0.000159,2]
[408587721,1773905443096,-467.41667283,0.000159,2]
[408587722,1773905443105,-467.41667283,0.000159,2]
[408587723,1773905443115,-467.41667283,0.000159,2]
[408587724,1773905443124,-467.41667283,0.000159,2]
[408587725,1773905443134,-150.0,0.000159,2]
[408587726,1773905443143,-467.41667283,0.000159,2]
[408587727,1773905443153,-467.41667283,0.000159,2]
[408587728,1773905443163,-467.41667283,0.000159,2]
[408587729,1773905443173,-467.41667283,0.000159,2]
[408587730,1773905443182,-467.41667283,0.000159,2]
[408587731,1773905443192,-467.41667283,0.000159,2]
[408587732,1773905443202,-467.41667283,0.000159,2]
[408587733,1773905443211,-467.41667283,0.000159,2]
[408587734,1773905443221,-467.41667283,0.000159,2]
[408587735,1773905443231,-467.41667283,0.000159,2]
[408587736,1773905443240,-467.41667283,0.000159,2]
[408587737,1773905443250,-467.41667283,0.000159,2]
[408587738,1773905443260,-467.41667283,0.000159,2]
[408587739,1773905443269,-467.41667283,0.000159,2]
[408587740,1773905443279,-7361.80400992,0.0001591,2]
[408587741,1773905443289,-23733.04613424,0.0001591,2]
[408587742,1773905443298,-168.0,0.00015915,2]
[408587743,1773905443307,-3609.92329877,0.00015916,2]
[408587744,1773905443317,-882.52,0.00015937,2]
[408587745,1773905443327,-700.0,0.0001597,2]
[408587746,1773905443336,-700.0,0.0001597,2]
[408587747,1773905443344,-700.0,0.0001597,2]
[408587748,1773905443354,-700.0,0.0001597,2]
[408587749,1773905443363,-700.0,0.0001597,2]
[408587750,1773905443372,-700.0,0.0001597,2]
[408587751,1773905443382,-700.0,0.0001597,2]
[408587752,1773905443391,-704.56000601,0.0001597,2]
[408587753,1773905443400,-690.73970436,0.00015988,2]
[408587754,1773905443410,-690.73970436,0.0001599,2]
[408587755,1773905443420,-757.0,0.00015993,2]
[408587756,1773905443429,-151.0,0.00015997,2]
[408587757,1773905443438,-10181.7468346,0.00015998,2]
[408587758,1773905443448,-36903.2009107,0.00015998,2]
[408587759,1773905443457,-947459.23723886,0.00016,2]
[408587760,1773905443488,-70000.00000001,0.00016,2]
[408587761,1773905443499,-558.84,0.00016,2]
[408587762,1773905445387,-376650.0,0.00016,2]
[408587763,1773905445399,-1757.91409875,0.00016,2]
[408587764,1773905445419,-1060.66154863,0.00016,2]
[408587765,1773905445430,-2586.91119633,0.00016,2]
[408587766,1773905445442,-365.36865515,0.00016,2]
[408587767,1773905445453,-2727.29185726,0.00016,2]
[408587769,1773905445464,-760.79805958,0.00016,2]
[408587771,1773905445475,-3239.35042914,0.00016,2]
[408587774,1773905445744,-500.0,0.00013434,2]
[408587775,1773905445754,-500.0,0.00013489,2]
[408587776,1773905445763,-229.65601077,0.0001591,2]
[408587777,1773905445773,-2272.74538019,0.00016,2]
[408587778,1773905445792,-8531930.8068998,0.00016,2]
[408587779,1773905445804,-5928.0145618,0.00016,2]
[408587780,1773905445815,-6856.78946516,0.00016,2]
[408587781,1773905445826,-7353.38488235,0.00016,2]
[408587783,1773905445867,-571.47594345,0.00016,2]
[408587788,1773905445904,-1398.44706929,0.00016,2]
[408587791,1773905446718,-1208.08309607,9.541e-05,2]
[408587792,1773905446728,-253.43471266,9.541e-05,2]
[408587793,1773905446737,-500.0,0.00012829,2]
[408587794,1773905446747,-500.0,0.00012829,2]
[408587795,1773905446756,-500.0,0.00012829,2]
[408587796,1773905446765,-500.0,0.00012829,2]
[408587797,1773905446775,-500.0,0.00012829,2]
[408587798,1773905446784,-500.0,0.00013698,2]
[408587799,1773905446793,-500.0,0.00013698,2]
[408587800,1773905446803,-2911.16263821,0.00013888,2]
[408587801,1773905446813,-500.0,0.000144,2]
[408587802,1773905446822,-500.0,0.00014674,2]
[408587803,1773905446831,-2226.38096193,0.0001522,2]
[408587804,1773905446850,-238.61903807,0.0001522,2]
[408587805,1773905446859,-218781.74420639,0.00016,2]